[Event "GER-ch Youth U12M 2018"]
[Site "Willingen"]
[Date "2018.05.21"]
[Round "4"]
[White "Hoffmann, Kay"]
[Black "Prieb, Robert"]
[Result "1/2-1/2"]
[ECO "E81"]
[WhiteElo "1247"]
[BlackElo "1709"]
[Annotator "NA"]
[PlyCount "110"]
[EventDate "2018.05.19"]
[EventType "swiss"]
[EventCountry "GER"]
[SourceTitle "playchess.com"]
[Source "ChessBase"]
[SourceQuality "1"]
[TimeControl "40/4500+30:900+30"]

1. d4 {[%emt 0:00:00]} Nf6 {[%emt 0:00:15]} 2. c4 {[%emt 0:00:00]} g6 {[%emt 0:00:18]} 3. Nc3 {[%emt 0:00:00]} Bg7 {[%emt 0:00:06]} 4. e4 {[%emt 0:00:23]} d6 {[%emt 0:00:18]} 5. f3 {[%emt 0:00:32]} O-O {[%emt 0:00:30]} 6. Be3 {[%emt 0:00:24]} Nfd7 {[%emt 0:01:28]} 7. Qd2 {[%emt 0:01:05]} c5 {[%emt 0:01:14]} 8. d5 {[%emt 0:00:37]} Ne5 {[%emt 0:00:50]} 9. Bh6 {[%emt 0:00:35]} b6 {[%emt 0:08:02]} 10. Bxg7 {[%emt 0:02:58]} Kxg7 {[%emt 0:00:05]} 11. Bd3 {[%emt 0:00:41]} f5 {[%emt 0:05:35]} 12. Nge2 {[%emt 0:04:04]} fxe4 {[%emt 0:01:49]} 13. Nxe4 {[%emt 0:00:54]} Rxf3 {[%emt 0:10:00]} 14. Nf2 {[%emt 0:02:47]} Qf8 {[%emt 0:03:59]} 15. O-O {[%emt 0:00:23]} Bf5 {[%emt 0:02:11]} 16. Rad1 {[%emt 0:01:56]} Nbd7 {[%emt 0:06:45]} 17. Be4 {[%emt 0:00:40]} Bxe4 {[%emt 0:03:49]} 18. Nxe4 {[%emt 0:01:13]} Rxf1+ {[%emt 0:02:48]} 19. Rxf1 {[%emt 0:00:08]} Qg8 {[%emt 0:01:23]} 20. b3 {[%emt 0:01:15]} Rf8 {[%emt 0:01:39]} 21. Nf4 {[%emt 0:00:37]} Kh8 {[%emt 0:02:52]} 22. Ne6 {[%emt 0:01:33]} Rxf1+ {[%emt 0:00:34]} 23. Kxf1 {[%emt 0:00:06]} Nf8 {[%emt 0:01:20]} 24. N4g5 {[%emt 0:01:15]} Nxe6 25. Nxe6 {[%emt 0:00:08]} Qf7+ {[%emt 0:03:10]} 26. Ke2 {[%emt 0:04:10]} Nd7 {[%emt 0:02:17]} 27. Qh6 {[%emt 0:01:07]} Kg8 {[%emt 0:01:04]} 28. Qh3 {[%emt 0:02:13]} Qf5 {[%emt 0:07:27]} 29. Qxf5 {[%emt 0:00:27]} gxf5 {[%emt 0:00:10]} 30. Kf3 {[%emt 0:00:08]} Kf7 {[%emt 0:00:46]} 31. Kf4 {[%emt 0:00:48]} Kf6 {[%emt 0:00:13]} 32. Ng5 {[%emt 0:01:58]} h6 33. Ne6 {[%emt 0:01:30]} Ne5 {[%emt 0:01:00]} 34. a3 {[%emt 0:02:34]} Ng6+ {[%emt 0:03:23]} 35. Ke3 {[%emt 0:00:53]} Ke5 {[%emt 0:04:21]} 36. g3 {[%emt 0:00:17]} Kf6 {[%emt 0:00:45]} 37. Kf3 {[%emt 0:00:50]} a5 {[%emt 0:01:34]} 38. a4 {[%emt 0:00:27]} Ne5+ {[%emt 0:00:26]} 39. Ke3 {[%emt 0:00:07]} Ng4+ {[%emt 0:01:05]} 40. Kf4 {[%emt 0:00:54]} Nxh2 {[%emt 0:16:09]} 41. Nf8 {[%emt 0:16:09]} Nf1 {[%emt 0:02:10]} 42. Nd7+ {[%emt 0:00:07]} Kg6 {[%emt 0:00:10]} 43. Nxb6 {[%emt 0:00:28]} Nd2 {[%emt 0:00:56]} 44. Nc8 {[%emt 0:00:22]} Kf6 {[%emt 0:00:42]} 45. Na7 {[%emt 0:00:10]} Nxb3 {[%emt 0:00:50]} 46. Nc6 {[%emt 0:00:08]} e6 {[%emt 0:04:16]} 47. dxe6 {[%emt 0:00:46]} Kxe6 {[%emt 0:01:32]} 48. Nd8+ {[%emt 0:00:17]} Ke7 {[%emt 0:00:55]} 49. Nc6+ {[%emt 0:01:01]} Kd7 {[%emt 0:00:31]} 50. Na7 {[%emt 0:00:28]} Nd4 {[%emt 0:00:23]} 51. g4 {[%emt 0:01:58]} fxg4 {[%emt 0:00:38]} 52. Kxg4 {[%emt 0:00:06]} d5 {[%emt 0:00:26]} 53. cxd5 {[%emt 0:03:07]} c4 {[%emt 0:00:12]} 54. Kf4 {[%emt 0:00:39]} c3 {[%emt 0:00:41]} 55. Ke3 {[%emt 0:00:08]} h5 1/2-1/2

[Event "GER-ch Youth U12M 2018"]
[Site "Willingen"]
[Date "2018.05.22"]
[Round "5"]
[White "Bui, Bao Anh Le"]
[Black "Sallandt, Frido"]
[Result "1-0"]
[ECO "C14"]
[WhiteElo "1974"]
[BlackElo "1524"]
[Annotator "NA RC"]
[PlyCount "47"]
[EventDate "2018.05.19"]
[EventType "swiss"]
[EventCountry "GER"]
[SourceTitle "playchess.com"]
[Source "ChessBase"]
[SourceQuality "1"]
[TimeControl "40/4500+30:900+30"]

1. e4 {[%emt 0:00:00]} e6 {[%emt 0:00:07]} 2. d4 {[%emt 0:00:00]} d5 {[%emt 0:00:05]} 3. Nc3 {[%emt 0:00:00]} Nf6 {[%emt 0:00:07]} 4. Bg5 {[%emt 0:00:00]} Be7 {[%emt 0:00:12]} 5. e5 {[%emt 0:00:00]} Nfd7 {[%emt 0:00:09]} 6. Bxe7 {[%emt 0:00:06]} Qxe7 {[%emt 0:00:06]} 7. f4 {[%emt 0:00:07]} O-O {[%emt 0:00:18]} 8. Nf3 {[%emt 0:00:04]} c5 {[%emt 0:00:07]} 9. Qd2 {[%emt 0:00:06]} Nc6 {[%emt 0:00:40]} 10. dxc5 {[%emt 0:00:10]} Nxc5 {[%emt 0:00:23]} 11. O-O-O {[%emt 0:00:47]} a6 {[%emt 0:00:21]} 12. Bd3 {[%emt 0:00:46]} Nxd3+ {[%emt 0:06:36]} 13. Qxd3 {[%emt 0:01:56]} Nb4 {[%emt 0:04:45]} 14. Qe3 {[%emt 0:03:11]} b5 {[%emt 0:02:49]} 15. Nd4 {[%emt 0:02:05]} Bd7 {[%emt 0:03:15]} 16. g4 {[%emt 0:02:52]} Rac8 {[%emt 0:05:03]} 17. Kb1 {[%emt 0:02:31]} Nc6 {[%emt 0:08:38]} 18. f5 {[%emt 0:17:02]} b4 {[%emt 0:01:44]} 19. f6 gxf6 {[%emt 0:03:58]} 20. Qh6 {[%emt 0:16:46]} Nxe5 {[%emt 0:15:03]} 21. Nf5 {[%emt 0:00:26]} exf5 {[%emt 0:02:32]} 22. Nxd5 {[%emt 0:00:05]} Qc5 {[%emt 0:00:38]} 23. Nxf6+ {[%emt 0:00:06]} Kh8 {[%emt 0:00:01]} 24. Qxh7# 1-0

[Event "GER-ch Youth U12M 2018"]
[Site "Willingen"]
[Date "2018.05.22"]
[Round "5"]
[White "Foerster-Yialamas, Lucas"]
[Black "Laux, Dominik"]
[Result "1-0"]
[ECO "B06"]
[WhiteElo "1924"]
[BlackElo "1889"]
[Annotator "NA RC"]
[PlyCount "95"]
[EventDate "2018.05.19"]
[EventType "swiss"]
[EventCountry "GER"]
[SourceTitle "playchess.com"]
[Source "ChessBase"]
[SourceQuality "1"]
[TimeControl "40/4500+30:900+30"]

1. e4 {[%emt 0:00:00]} g6 {[%emt 0:00:19]} 2. d4 {[%emt 0:00:00]} Bg7 {[%emt 0:00:07]} 3. Nc3 {[%emt 0:00:00]} c6 {[%emt 0:00:09]} 4. Nf3 {[%emt 0:00:00]} d6 {[%emt 0:00:10]} 5. Be2 {[%emt 0:00:06]} Nf6 {[%emt 0:00:13]} 6. h3 {[%emt 0:00:24]} O-O {[%emt 0:00:32]} 7. Be3 {[%emt 0:00:11]} Nbd7 {[%emt 0:00:25]} 8. Qd2 {[%emt 0:00:40]} Qa5 {[%emt 0:00:19]} 9. O-O {[%emt 0:01:21]} Re8 {[%emt 0:03:03]} 10. Bh6 {[%emt 0:02:35]} b5 {[%emt 0:07:10]} 11. Bxg7 {[%emt 0:01:47]} Kxg7 {[%emt 0:00:14]} 12. e5 {[%emt 0:01:32]} Ng8 {[%emt 0:01:26]} 13. d5 {[%emt 0:04:49]} Nxe5 {[%emt 0:05:51]} 14. Nxe5 {[%emt 0:00:20]} dxe5 {[%emt 0:00:05]} 15. dxc6 {[%emt 0:00:27]} b4 {[%emt 0:02:30]} 16. Qd5 {[%emt 0:00:23]} Qd8 {[%emt 0:06:37]} 17. Qxd8 {[%emt 0:00:20]} Rxd8 {[%emt 0:00:03]} 18. c7 {[%emt 0:00:06]} Rd2 {[%emt 0:00:16]} 19. Bf3 {[%emt 0:00:06]} bxc3 {[%emt 0:00:29]} 20. bxc3 {[%emt 0:00:28]} Rd7 {[%emt 0:00:37]} 21. Bxa8 {[%emt 0:00:14]} Rxc7 {[%emt 0:00:07]} 22. Rfe1 {[%emt 0:01:44]} Rxc3 {[%emt 0:02:04]} 23. Rxe5 {[%emt 0:00:09]} Rxc2 {[%emt 0:00:07]} 24. Ra5 {[%emt 0:02:20]} a6 {[%emt 0:02:10]} 25. Rd1 {[%emt 0:01:15]} Nf6 {[%emt 0:02:35]} 26. Bf3 {[%emt 0:01:31]} h5 {[%emt 0:03:33]} 27. Re1 {[%emt 0:04:31]} Kf8 {[%emt 0:05:42]} 28. Be2 {[%emt 0:01:32]} Rc6 {[%emt 0:00:31]} 29. Rd1 {[%emt 0:00:51]} Ke8 {[%emt 0:03:53]} 30. Rd4 {[%emt 0:01:49]} Nd7 {[%emt 0:01:40]} 31. Rc4 {[%emt 0:03:05]} Rxc4 {[%emt 0:01:29]} 32. Bxc4 {[%emt 0:00:01]} Nb8 {[%emt 0:00:28]} 33. Rc5 {[%emt 0:01:08]} Bd7 {[%emt 0:01:13]} 34. Kf1 {[%emt 0:01:06]} h4 {[%emt 0:02:02]} 35. Ke2 {[%emt 0:00:33]} f6 {[%emt 0:01:14]} 36. Rc7 {[%emt 0:03:04]} Kd8 {[%emt 0:01:58]} 37. Rb7 {[%emt 0:00:34]} Kc8 {[%emt 0:04:47]} 38. Ra7 {[%emt 0:00:49]} Bc6 {[%emt 0:03:48]} 39. Rxe7 {[%emt 0:01:09]} Bxg2 {[%emt 0:01:20]} 40. f3 {[%emt 0:03:37]} Bxh3 {[%emt 0:17:25]} 41. Be6+ {[%emt 0:15:01]} Bxe6 {[%emt 0:00:07]} 42. Rxe6 {[%emt 0:00:17]} Nd7 {[%emt 0:02:05]} 43. Rxa6 {[%emt 0:00:06]} g5 {[%emt 0:00:15]} 44. Kf2 {[%emt 0:01:46]} Kd8 {[%emt 0:02:12]} 45. a4 {[%emt 0:00:39]} Ne5 {[%emt 0:01:41]} 46. Rxf6 {[%emt 0:03:25]} g4 {[%emt 0:00:26]} 47. a5 {[%emt 0:01:20]} g3+ {[%emt 0:00:52]} 48. Kg2 {[%emt 0:00:39]} 1-0

[Event "GER-ch Youth U12M 2018"]
[Site "Willingen"]
[Date "2018.05.22"]
[Round "5"]
[White "Hommer, Jeremy"]
[Black "Chassard, Cedric"]
[Result "1/2-1/2"]
[ECO "A04"]
[WhiteElo "1897"]
[BlackElo "1590"]
[Annotator "NA RC"]
[PlyCount "71"]
[EventDate "2018.05.19"]
[EventType "swiss"]
[EventCountry "GER"]
[SourceTitle "playchess.com"]
[Source "ChessBase"]
[SourceQuality "1"]
[TimeControl "40/4500+30:900+30"]

1. Nf3 {[%emt 0:00:00]} e6 {[%emt 0:00:20]} 2. g3 {[%emt 0:00:00]} Nf6 {[%emt 0:00:30]} 3. Bg2 {[%emt 0:00:15]} c5 {[%emt 0:00:27]} 4. O-O {[%emt 0:00:11]} Nc6 {[%emt 0:00:52]} 5. c4 Be7 6. Nc3 {[%emt 0:04:13]} O-O {[%emt 0:04:39]} 7. d4 {[%emt 0:03:53]} d5 {[%emt 0:03:05]} 8. cxd5 {[%emt 0:06:14]} Nxd5 {[%emt 0:01:48]} 9. e4 {[%emt 0:10:57]} Nf6 {[%emt 0:06:44]} 10. d5 {[%emt 0:20:28]} exd5 {[%emt 0:00:17]} 11. e5 {[%emt 0:00:24]} Ng4 {[%emt 0:04:20]} 12. Qxd5 {[%emt 0:00:34]} Be6 {[%emt 0:00:47]} 13. Qe4 {[%emt 0:04:24]} Qd7 {[%emt 0:13:11]} 14. Rd1 {[%emt 0:01:41]} Qc7 {[%emt 0:08:03]} 15. Bf4 {[%emt 0:04:31]} Qb6 {[%emt 0:06:09]} 16. Qe2 {[%emt 0:00:30]} c4 {[%emt 0:02:49]} 17. Ne4 {[%emt 0:02:06]} Bf5 {[%emt 0:03:52]} 18. Nd6 {[%emt 0:06:29]} Bd3 {[%emt 0:00:50]} 19. Qe1 {[%emt 0:01:43]} Bxd6 {[%emt 0:01:03]} 20. exd6 {[%emt 0:00:04]} Rfe8 {[%emt 0:00:14]} 21. Be3 {[%emt 0:02:15]} Nxe3 {[%emt 0:01:17]} 22. fxe3 {[%emt 0:00:18]} Rxe3 {[%emt 0:00:52]} 23. Qf2 {[%emt 0:00:05]} Rae8 {[%emt 0:00:38]} 24. d7 {[%emt 0:00:47]} R8e7 {[%emt 0:00:59]} 25. Re1 {[%emt 0:00:26]} Rxe1+ {[%emt 0:00:20]} 26. Rxe1 {[%emt 0:00:03]} Rxe1+ {[%emt 0:00:22]} 27. Nxe1 {[%emt 0:00:06]} Qxf2+ {[%emt 0:00:35]} 28. Kxf2 {[%emt 0:03:35]} Nd8 {[%emt 0:00:04]} 29. Nxd3 {[%emt 0:00:09]} cxd3 {[%emt 0:00:04]} 30. Ke3 {[%emt 0:00:28]} Kf8 {[%emt 0:00:06]} 31. Kxd3 {[%emt 0:00:59]} Ke7 {[%emt 0:00:04]} 32. Kd4 {[%emt 0:01:03]} Kxd7 {[%emt 0:00:31]} 33. Kd5 {[%emt 0:01:07]} Nc6 {[%emt 0:01:03]} 34. Bh3+ {[%emt 0:00:54]} Kc7 {[%emt 0:01:15]} 35. a3 {[%emt 0:00:31]} Ne7+ {[%emt 0:00:29]} 36. Kd4 1/2-1/2

[Event "GER-ch Youth U12M 2018"]
[Site "Willingen"]
[Date "2018.05.22"]
[Round "5"]
[White "Haack, Kevin"]
[Black "Tham, Nam"]
[Result "0-1"]
[ECO "A20"]
[WhiteElo "1846"]
[BlackElo "1866"]
[Annotator "NA RC"]
[PlyCount "114"]
[EventDate "2018.05.19"]
[EventType "swiss"]
[EventCountry "GER"]
[SourceTitle "playchess.com"]
[Source "ChessBase"]
[SourceQuality "1"]
[TimeControl "40/4500+30:900+30"]

1. c4 {[%emt 0:00:00]} e5 {[%emt 0:00:05]} 2. g3 {[%emt 0:00:00]} Nf6 {[%emt 0:00:04]} 3. Bg2 {[%emt 0:00:00]} Nc6 {[%emt 0:00:07]} 4. d3 {[%emt 0:00:00]} Bc5 {[%emt 0:00:07]} 5. Nc3 {[%emt 0:00:03]} d6 {[%emt 0:00:09]} 6. Nf3 {[%emt 0:00:10]} O-O {[%emt 0:00:07]} 7. O-O {[%emt 0:00:11]} Be6 {[%emt 0:00:09]} 8. a3 {[%emt 0:00:40]} a6 {[%emt 0:00:05]} 9. b4 {[%emt 0:00:21]} Ba7 {[%emt 0:00:04]} 10. Rb1 {[%emt 0:00:19]} h6 {[%emt 0:01:20]} 11. Bd2 {[%emt 0:04:24] A29: English Opening: Four Knights Variation with 4 g3} (11. Bb2 Qd7 12. b5 axb5 13. cxb5 Ne7 14. Qc2 Bh3 15. Bxh3 Qxh3 16. Na4 Bb8 17. Rfc1 Ng4 18. d4 Nd5 {0-1 (31) Grill,B (2103)-Sadzikowski,D (2584) Neustadt an der Weinstrasse 2018}) 11... Ne7 {[%emt 0:00:51]} 12. Qc2 $146 {[%emt 0:02:15]} ({Predecessor:} 12. a4 c6 13. Qc1 Ng6 14. Be3 c5 15. b5 a5 {0-1 (36) Tan,L-Souphaphone,S Chiangmai 2013}) 12... Ng6 {[%emt 0:00:25]} 13. Rfc1 {[%emt 0:02:30]} c6 {[%emt 0:04:15]} 14. b5 {[%emt 0:05:35]} axb5 {[%emt 0:02:31]} 15. cxb5 {[%emt 0:00:12]} c5 {[%emt 0:00:07]} 16. Rb2 {[%emt 0:04:37]} Rc8 {[%emt 0:06:38]} 17. Rcb1 {[%emt 0:02:23]} b6 {[%emt 0:00:32]} 18. a4 {[%emt 0:03:50]} d5 {[%emt 0:00:41]} 19. Nd1 {[%emt 0:04:18]} Qd6 {[%emt 0:01:54]} 20. a5 {[%emt 0:01:41]} Rfd8 {[%emt 0:02:44]} 21. Ra1 {[%emt 0:03:56]} Ra8 {[%emt 0:01:28]} 22. Rba2 {[%emt 0:01:41]} e4 {[%emt 0:01:21]} 23. Ne1 {[%emt 0:01:41]} d4 {[%emt 0:05:46]} 24. Ra3 {[%emt 0:02:36]} exd3 {[%emt 0:01:24]} 25. exd3 {[%emt 0:00:27]} Bd5 {[%emt 0:00:10]} 26. axb6 {[%emt 0:02:35]} Qxb6 {[%emt 0:09:07]} 27. Ba5 {[%emt 0:00:43]} Qe6 {[%emt 0:01:06]} 28. Nc3 {[%emt 0:15:08]} Re8 {[%emt 0:02:10]} 29. Nxd5 {[%emt 0:00:37]} Nxd5 {[%emt 0:00:55]} 30. Qc4 {[%emt 0:02:17]} Nge7 {[%emt 0:00:46]} 31. Nc2 {[%emt 0:02:27]} Rab8 {[%emt 0:02:00]} 32. Bc7 {[%emt 0:05:23]} Nxc7 {[%emt 0:00:51]} 33. Rxa7 {[%emt 0:00:37]} Nxb5 {[%emt 0:00:34]} 34. R7a5 {[%emt 0:01:40]} Qxc4 {[%emt 0:06:14]} 35. dxc4 {[%emt 0:00:03]} d3 {[%emt 0:00:32]} 36. cxb5 {[%emt 0:00:37]} dxc2 {[%emt 0:00:22]} 37. Rc1 {[%emt 0:00:14]} Nf5 {[%emt 0:00:36]} 38. Rxc2 {[%emt 0:01:15]} Re1+ {[%emt 0:00:41]} 39. Bf1 {[%emt 0:00:02]} Nd4 {[%emt 0:00:08]} 40. Rb2 {[%emt 0:01:14]} c4 {[%emt 0:16:38]} 41. Rba2 {[%emt 0:23:03]} c3 {[%emt 0:01:09]} 42. Ra1 {[%emt 0:00:17]} Ree8 {[%emt 0:08:02]} 43. Bc4 {[%emt 0:08:54]} c2 {[%emt 0:01:33]} 44. Kf1 {[%emt 0:00:00]} Nf3 {[%emt 0:00:00]} 45. R5a4 $2 {[%emt 0:00:00]} (45. Kg2 $17 {war die entscheidende Verteidigung.} Ne1+ 46. Kh3) 45... Rbc8 {[%emt 0:00:00]} 46. Rc1 $19 (46. Kg2 Nd2 47. Ba2) 46... Nd2+ {[%emt 0:00:00]} 47. Kg2 {[%emt 0:00:00]} Nxc4 {[%emt 0:00:00]} 48. Ra2 {[%emt 0:00:00]} Re2 {[%emt 0:00:00]} 49. Kf3 {[%emt 0:00:00]} Rd2 {[%emt 0:00:00]} 50. b6 {[%emt 0:00:00]} Nxb6 {[%emt 0:00:00]} 51. Ke3 {[%emt 0:00:00]} Nc4+ {[%emt 0:00:00]} 52. Ke4 {[%emt 0:00:00]} Re8+ {[%emt 0:00:00]} 53. Kf4 {[%emt 0:00:00]} Rxf2+ {[%emt 0:00:00]} 54. Kg4 {[%emt 0:00:00]} Ree2 {[%emt 0:00:00]} 55. h4 {[%emt 0:00:00]} Kh7 {[%emt 0:00:00]} 56. Rh1 {[%emt 0:00:21]} f5+ {[%emt 0:00:00]} 57. Kh3 {[%emt 0:00:06]} Rh2+ {[%emt 0:00:00]} 0-1

[Event "GER-ch Youth U12M 2018"]
[Site "Willingen"]
[Date "2018.05.22"]
[Round "5"]
[White "Farokhi, Keyvan"]
[Black "Schubert, Nikita"]
[Result "1/2-1/2"]
[ECO "C44"]
[WhiteElo "1844"]
[BlackElo "1802"]
[Annotator "NA RC"]
[PlyCount "96"]
[EventDate "2018.05.19"]
[EventType "swiss"]
[EventCountry "GER"]
[SourceTitle "playchess.com"]
[Source "ChessBase"]
[SourceQuality "1"]
[TimeControl "40/4500+30:900+30"]

1. e4 {[%emt 0:00:00]} e5 {[%emt 0:00:04]} 2. Nf3 {[%emt 0:00:00]} Nc6 {[%emt 0:00:04]} 3. d4 {[%emt 0:00:00]} exd4 {[%emt 0:00:09]} 4. Bc4 {[%emt 0:00:00]} Bc5 {[%emt 0:00:14]} 5. O-O {[%emt 0:00:01]} d6 {[%emt 0:00:27]} 6. c3 {[%emt 0:00:08]} dxc3 {[%emt 0:00:34]} 7. Qb3 {[%emt 0:00:15] C44: Ponziani Opening and Scotch Gambit} Qd7 {[%emt 0:11:16]} (7... Na5 8. Bxf7+ Kf8 9. Qxc3 Kxf7 10. Qxa5 Bg4 11. Ng5+ Kg6 12. h3 h6 13. hxg4 hxg5 14. b4 Bd4 15. Qf5+ Kh6 16. Rd1 Bxa1 17. Rd3 g6 18. Qf7 Nf6 19. Rh3+ Nh5 20. gxh5 {1-0 (20) Turov,M (2539)-Jenni,F (2520) playchess.com INT 2006}) 8. Qxc3 {[%emt 0:04:28]} f6 {[%emt 0:12:14]} 9. a3 {[%emt 0:15:10]} Nge7 {[%emt 0:04:45]} 10. b4 {[%emt 0:00:17]} Bb6 {[%emt 0:00:02]} 11. Qb3 {[%emt 0:03:47]} Ng6 $146 {[%emt 0:01:48]} ({Predecessor:} 11... Rf8 12. Nc3 Nd4 13. Nxd4 Bxd4 14. Ra2 Bxc3 15. Qxc3 {1-0 (28) Wayte,W-Hampton,T Bristol 1861}) 12. Bb2 {[%emt 0:01:38]} Nce5 {[%emt 0:08:12]} 13. Nxe5 {[%emt 0:00:24]} fxe5 {[%emt 0:08:40]} 14. Nc3 {[%emt 0:08:17]} Nf4 {[%emt 0:04:27]} 15. Ne2 {[%emt 0:01:56]} Nxe2+ {[%emt 0:01:01]} 16. Bxe2 {[%emt 0:00:02]} Qe7 {[%emt 0:02:09]} 17. Kh1 {[%emt 0:02:48]} Be6 {[%emt 0:02:14]} 18. Qg3 {[%emt 0:00:31]} O-O {[%emt 0:02:04]} 19. f3 {[%emt 0:09:40]} Be3 {[%emt 0:03:45]} 20. Bc1 {[%emt 0:01:17]} Bd4 {[%emt 0:01:05]} 21. Bg5 {[%emt 0:00:08]} Qd7 {[%emt 0:01:34]} 22. Rad1 {[%emt 0:02:30]} Qe8 {[%emt 0:07:57]} 23. f4 {[%emt 0:02:38]} exf4 {[%emt 0:01:43]} 24. Bxf4 {[%emt 0:00:09]} Bf6 {[%emt 0:01:07]} 25. e5 {[%emt 0:00:19]} dxe5 {[%emt 0:02:12]} 26. Bxe5 {[%emt 0:00:09]} Bxe5 {[%emt 0:00:24]} 27. Qxe5 {[%emt 0:00:07]} Rxf1+ {[%emt 0:00:51]} 28. Rxf1 {[%emt 0:00:14]} c6 {[%emt 0:03:45]} 29. Qc7 {[%emt 0:03:36]} Qc8 {[%emt 0:02:19]} 30. Qe7 {[%emt 0:00:49]} Bd5 {[%emt 0:00:52]} 31. Bf3 {[%emt 0:02:06]} Bxf3 {[%emt 0:00:25]} 32. Rxf3 {[%emt 0:00:02]} Qe8 {[%emt 0:00:26]} 33. Qh4 {[%emt 0:01:17]} Qe2 {[%emt 0:01:06]} 34. h3 {[%emt 0:00:35]} Re8 {[%emt 0:00:12]} 35. Qf4 {[%emt 0:00:43]} Qe1+ {[%emt 0:00:25]} 36. Rf1 {[%emt 0:00:06]} Qe6 {[%emt 0:00:07]} 37. Qc7 {[%emt 0:01:21]} Qe7 {[%emt 0:00:26]} 38. Qf4 {[%emt 0:00:12]} h6 {[%emt 0:00:32]} 39. Rf3 {[%emt 0:02:06]} Qd7 {[%emt 0:02:11]} 40. Rf1 {[%emt 0:02:13]} Qe6 {[%emt 0:15:44]} 41. Qc7 {[%emt 0:17:05]} Qe7 {[%emt 0:00:00]} 42. Qf4 {[%emt 0:00:00]} a6 {[%emt 0:00:00]} 43. Rf3 $17 {[%emt 0:00:00]} Kh8 {[%emt 0:00:00]} 44. Qf7 {[%emt 0:00:00]} Qxf7 {[%emt 0:00:00]} 45. Rxf7 {[%emt 0:00:00]} Rb8 {[%emt 0:00:00]} 46. Rc7 {[%emt 0:00:00]} Kh7 {[%emt 0:00:00]} 47. Kh2 {[%emt 0:00:00]} Kg6 {[%emt 0:00:00]} 48. g4 {[%emt 0:00:00]} Kh7 {[%emt 0:01:01]} 1/2-1/2

[Event "GER-ch Youth U12M 2018"]
[Site "Willingen"]
[Date "2018.05.22"]
[Round "5"]
[White "Bakiev, Diyor"]
[Black "Rössel, Gino"]
[Result "1-0"]
[ECO "B22"]
[WhiteElo "1752"]
[BlackElo "1705"]
[Annotator "NA RC"]
[PlyCount "99"]
[EventDate "2018.05.19"]
[EventType "swiss"]
[EventCountry "GER"]
[SourceTitle "playchess.com"]
[Source "ChessBase"]
[SourceQuality "1"]
[TimeControl "40/4500+30:900+30"]

1. e4 {[%emt 0:00:00]} c5 {[%emt 0:00:09]} 2. c3 {[%emt 0:00:00]} Nf6 {[%emt 0:00:24]} 3. e5 {[%emt 0:00:00]} Nd5 {[%emt 0:00:06]} 4. d4 {[%emt 0:00:00]} cxd4 {[%emt 0:00:51]} 5. Nf3 {[%emt 0:00:37]} Nc6 {[%emt 0:02:10]} 6. cxd4 {[%emt 0:00:21]} d6 {[%emt 0:03:18]} 7. Bc4 {[%emt 0:00:40]} Nb6 {[%emt 0:01:44]} 8. Bb5 {[%emt 0:00:50]} e6 {[%emt 0:08:02]} 9. O-O {[%emt 0:05:47]} Be7 {[%emt 0:04:55]} 10. Qe2 {[%emt 0:04:47]} O-O {[%emt 0:04:46]} 11. Qe4 {[%emt 0:01:37]} dxe5 {[%emt 0:06:23]} 12. dxe5 {[%emt 0:04:04]} Qd5 {[%emt 0:01:28]} 13. Bxc6 {[%emt 0:02:11]} Qxc6 {[%emt 0:02:06]} 14. Qg4 {[%emt 0:04:11]} Qc2 {[%emt 0:04:27]} 15. Nc3 {[%emt 0:05:42]} Qg6 {[%emt 0:01:25]} 16. Qxg6 {[%emt 0:00:46]} hxg6 {[%emt 0:00:19]} 17. Rd1 {[%emt 0:02:52]} Nd7 {[%emt 0:09:12]} 18. Be3 {[%emt 0:06:58]} b6 {[%emt 0:02:09]} 19. Rac1 {[%emt 0:02:44]} Rd8 {[%emt 0:01:18]} 20. Nb5 {[%emt 0:03:45]} Ba6 {[%emt 0:08:04]} 21. Nc7 {[%emt 0:01:30]} Be2 {[%emt 0:00:40]} 22. Nxa8 {[%emt 0:01:23]} Bxd1 {[%emt 0:05:08]} 23. Rxd1 {[%emt 0:00:03]} Nb8 {[%emt 0:01:58]} 24. Rxd8+ Bxd8 {[%emt 0:00:10]} 25. Nd4 {[%emt 0:03:17]} Kf8 {[%emt 0:01:02]} 26. Nb5 {[%emt 0:00:43]} Nc6 {[%emt 0:01:46]} 27. a4 {[%emt 0:02:38]} Ke7 {[%emt 0:00:40]} 28. a5 {[%emt 0:00:32]} a6 {[%emt 0:01:03]} 29. Nc3 {[%emt 0:00:56]} bxa5 {[%emt 0:00:29]} 30. Nb6 {[%emt 0:01:14]} Nxe5 {[%emt 0:00:10]} 31. Bc5+ Ke8 32. Nba4 {[%emt 0:06:32]} Kd7 {[%emt 0:01:15]} 33. Bd4 {[%emt 0:00:40]} Bf6 {[%emt 0:00:50]} 34. Bxe5 {[%emt 0:01:01]} Bxe5 {[%emt 0:00:04]} 35. Kf1 {[%emt 0:00:36]} Kc6 {[%emt 0:02:13]} 36. g3 {[%emt 0:00:46]} Bf6 {[%emt 0:00:21]} 37. Ke2 {[%emt 0:00:40]} g5 {[%emt 0:02:17]} 38. Kd3 {[%emt 0:00:38]} g6 {[%emt 0:00:45]} 39. f3 {[%emt 0:01:59]} Bg7 {[%emt 0:01:05]} 40. g4 {[%emt 0:00:38]} f5 {[%emt 0:17:01]} 41. h3 {[%emt 0:15:32]} Bf6 {[%emt 0:02:42]} 42. Kc4 {[%emt 0:01:44]} Be7 {[%emt 0:02:02]} 43. Ne2 {[%emt 0:03:10]} e5 {[%emt 0:01:46]} 44. Ng3 {[%emt 0:01:21]} f4 {[%emt 0:00:00]} 45. Ne4 {[%emt 0:00:00]} Bf8 {[%emt 0:00:00]} 46. Nxg5 {[%emt 0:00:00]} Be7 {[%emt 0:00:00]} 47. Ne4 {[%emt 0:00:00]} g5 {[%emt 0:00:00]} 48. Nec5 {[%emt 0:00:00]} Bxc5 {[%emt 0:00:00]} 49. Nxc5 {[%emt 0:00:00]} a4 {[%emt 0:00:00]} 50. Ne4 {[%emt 0:00:00]} 1-0